fUSD/lending_fUSD_20250526
["ID","MTS","AMOUNT","RATE_DAILY","PERIOD"]
[362407519,1748255443379,-420.0,0.00041354,2]
[362407520,1748255443389,-420.0,0.00041354,2]
[362407521,1748255443399,-420.0,0.00041354,2]
[362407522,1748255443408,-420.0,0.00041354,2]
[362407523,1748255443418,-420.0,0.00041354,2]
[362407524,1748255443428,-420.0,0.00041354,2]
[362407525,1748255443438,-211.54466775,0.00041354,2]
[362407526,1748255443448,-420.0,0.00041354,2]
[362407527,1748255443458,-2356.43,0.00041354,2]
[362407528,1748255443468,-2356.43,0.00041354,2]
[362407529,1748255443477,-2356.43,0.00041354,2]
[362407530,1748255443487,-420.0,0.00041354,2]
[362407531,1748255443497,-420.0,0.00041354,2]
[362407532,1748255443506,-420.0,0.00041354,2]
[362407533,1748255443516,-420.0,0.00041354,2]
[362407534,1748255443526,-420.0,0.00041354,2]
[362407535,1748255443536,-420.0,0.00041354,2]
[362407536,1748255443545,-379.1,0.00041354,2]
[362407537,1748255443555,-420.0,0.00041354,2]
[362407538,1748255443565,-420.0,0.00041354,2]
[362407539,1748255443574,-420.0,0.00041354,2]
[362407540,1748255443584,-420.0,0.00041354,2]
[362407541,1748255443593,-420.0,0.00041354,2]
[362407542,1748255443603,-420.0,0.00041354,2]
[362407543,1748255443613,-484.74367843,0.00041354,2]
[362407544,1748255443622,-420.0,0.00041354,2]
[362407545,1748255443632,-420.0,0.00041354,2]
[362407546,1748255443642,-245.11,0.00041354,2]
[362407547,1748255443652,-420.0,0.00041354,2]
[362407548,1748255443794,-420.0,0.00041354,2]
[362407549,1748255443809,-420.0,0.00041354,2]
[362407550,1748255443819,-287.2093362,0.00041354,2]
[362407551,1748255443828,-420.0,0.00041354,2]
[362407552,1748255443840,-500.87,0.00041354,2]
[362407553,1748255443850,-420.0,0.00041354,2]
[362407554,1748255443860,-420.0,0.00041354,2]
[362407555,1748255443869,-420.0,0.00041354,2]
[362407556,1748255443879,-420.0,0.00041354,2]
[362407557,1748255443890,-420.0,0.00041354,2]
[362407558,1748255443900,-420.0,0.00041354,2]
[362407559,1748255443911,-420.0,0.00041354,2]
[362407560,1748255443923,-420.0,0.00041354,2]
[362407561,1748255443933,-420.0,0.00041354,2]
[362407562,1748255443943,-500.0,0.00041354,2]
[362407563,1748255443953,-566.26393787,0.00041354,2]
[362407564,1748255443963,-460.94,0.00041354,2]
[362407565,1748255443972,-420.0,0.00041354,2]
[362407566,1748255443981,-420.0,0.00041354,2]
[362407567,1748255443991,-233.00687523,0.00041354,2]
[362407568,1748255444001,-459.76,0.00041354,2]
[362407569,1748255444010,-420.0,0.00041354,2]
[362407570,1748255444020,-420.0,0.00041354,2]
[362407571,1748255444030,-420.0,0.00041354,2]
[362407572,1748255444040,-343.23604012,0.00041354,2]
[362407573,1748255444049,-420.0,0.00041354,2]
[362407574,1748255444059,-341.54,0.00041354,2]
[362407575,1748255444069,-420.0,0.00041354,2]
[362407576,1748255444080,-420.0,0.00041354,2]
[362407577,1748255444091,-420.0,0.00041354,2]
[362407578,1748255444101,-432.3,0.00041354,2]
[362407579,1748255444111,-420.0,0.00041354,2]
[362407580,1748255444121,-420.0,0.00041354,2]
[362407581,1748255444132,-420.0,0.00041354,2]
[362407582,1748255444142,-420.0,0.00041354,2]
[362407583,1748255444154,-494.61,0.00041354,2]
[362407584,1748255444163,-500.0,0.00041354,2]
[362407585,1748255444173,-420.0,0.00041354,2]
[362407586,1748255444183,-420.0,0.00041354,2]
[362407587,1748255444192,-420.0,0.00041354,2]
[362407588,1748255444202,-420.0,0.00041354,2]
[362407589,1748255444212,-420.0,0.00041354,2]
[362407590,1748255444222,-420.0,0.00041354,2]
[362407591,1748255444232,-420.0,0.00041354,2]
[362407592,1748255444243,-420.0,0.00041354,2]
[362407593,1748255444252,-420.0,0.00041354,2]
[362407594,1748255444262,-242.06,0.00041354,2]
[362407595,1748255444270,-244.65,0.00041354,2]
[362407596,1748255444279,-420.0,0.00041354,2]
[362407597,1748255444288,-61421.60418,0.00041355,3]
[362407598,1748255444296,-420.0,0.00041355,2]
[362407599,1748255444304,-420.0,0.00041355,2]
[362407600,1748255444312,-421.99685227,0.00041355,2]
[362407601,1748255444321,-420.0,0.00041355,2]
[362407602,1748255444330,-420.0,0.00041355,2]
[362407603,1748255444338,-221.59379632,0.00041355,2]
[362407604,1748255444346,-309.99637115,0.00041355,2]
[362407605,1748255444355,-420.0,0.00041355,2]
[362407606,1748255444363,-420.0,0.00041355,2]
[362407607,1748255444372,-420.0,0.00041355,2]
[362407608,1748255444380,-420.0,0.00041355,2]
[362407609,1748255444388,-420.0,0.00041355,2]
[362407610,1748255444397,-420.0,0.00041355,2]
[362407611,1748255444407,-420.0,0.00041355,2]
[362407612,1748255444417,-420.0,0.00041355,2]
[362407613,1748255444427,-420.0,0.00041355,2]
[362407614,1748255444439,-420.0,0.00041355,2]
[362407615,1748255444450,-292.42419424,0.00041355,2]
[362407616,1748255444461,-420.0,0.00041355,2]
[362407617,1748255444471,-420.0,0.00041355,2]
[362407618,1748255444481,-420.0,0.00041355,2]
[362407619,1748255444492,-420.0,0.00041355,2]
[362407620,1748255444502,-500.0,0.00041355,2]
[362407621,1748255444512,-420.0,0.00041355,2]
[362407622,1748255444524,-420.0,0.00041355,2]
[362407623,1748255444534,-342.54,0.00041355,2]
[362407624,1748255444543,-486571.63597973,0.00041356,120]
[362407625,1748255444558,-405.73749994,0.00041356,120]
[362407626,1748255444570,-1414.37,0.00041356,120]
[362407627,1748255444621,-420.0,0.00019994,2]
[362407628,1748255444631,-420.0,0.00019994,2]
[362407629,1748255444641,-420.0,0.00019999,2]
[362407630,1748255444653,-420.0,0.00020606,2]
[362407631,1748255444663,-4561.8500242,0.00041356,120]
[362407632,1748255444675,-465.5300165,0.00041356,120]
[362407633,1748255444693,-125290.98175465,0.00041356,120]
[362407634,1748255444705,-1669.20532171,0.00041356,120]
[362407635,1748255444717,-498.23956915,0.00041356,120]
[362407636,1748255444819,-434.11505943,0.00041356,120]
[362407648,1748255445853,-1637.39579594,0.0001989,2]
[362407666,1748255446125,-862.60420406,0.0001989,2]
[362407667,1748255446136,-420.0,0.00019994,2]
[362407668,1748255446146,-457.10535459,0.00019994,2]
[362407669,1748255446157,-420.0,0.00019994,2]
[362407670,1748255446167,-420.0,0.00019999,2]
[362407671,1748255446177,-263.92,0.00020606,2]
[362407672,1748255446186,-251.76,0.00040243,2]
[362407673,1748255446195,-6077.68091261,0.00041356,120]
[362407682,1748256071994,798.69,0.00016965,2]
[362407683,1748256121954,175.97,0.00013699,2]
[362407689,1748256205783,196.0,0.00026,120]
[362407690,1748256299242,324.77,0.00025621,120]
[362407691,1748256416131,-324.77,0.00018633,2]
[362407692,1748256416152,-500.0,0.00018726,2]
[362407693,1748256416173,-165.23502499,0.00018827,2]
[362407696,1748256500903,168.94,0.00014674,2]
[362407703,1748256632219,-275.65034164,0.0001815,2]
[362407704,1748256632238,-538.67200498,0.0001815,2]
[362407705,1748256632279,-5062.03952138,0.0001815,2]
[362407706,1748256632289,-250.0,0.00018241,2]
[362407707,1748256632300,-200.0,0.00018241,2]
[362407708,1748256632311,-161.32,0.00018287,2]
[362407709,1748256632321,-168.94,0.00018343,2]
[362407710,1748256632330,-250.0,0.00018399,2]
[362407711,1748256632339,-200.0,0.00018563,2]
[362407712,1748256632351,-1200.0,0.00018608,2]
[362407713,1748256632361,-4000.0,0.00018609,2]
[362407714,1748256632370,-261.9198979,0.00018609,2]
[362407715,1748256632381,-200.0,0.00018678,2]
[362407716,1748256632390,-985.7241,0.00018829,2]
[362407717,1748256632400,-1000.0,0.00018929,2]
[362407718,1748256632409,-250.0,0.00019015,2]
[362407720,1748256632419,-300.0,0.00019038,2]
[362407722,1748256632428,-6989.86380957,0.00019039,2]
[362407724,1748256632439,-13379.5216969,0.00019039,2]
[362407726,1748256632451,-3530.61449353,0.00019039,2]
[362407728,1748256632460,-500.0,0.00019073,2]
[362407730,1748256632470,-500.0,0.00019073,2]
[362407732,1748256632479,-500.0,0.00019073,2]
[362407734,1748256632488,-501.2037935,0.00019073,2]
[362407736,1748256632497,-225.88063765,0.00019073,2]
[362407738,1748256632506,-184.69659614,0.00019073,2]
[362407740,1748256632515,-506.85979896,0.00019073,2]
[362407742,1748256632524,-500.0,0.00019073,2]
[362407744,1748256632534,-200.0,0.00019159,2]
[362407746,1748256632543,-500.0,0.00019173,2]
[362407748,1748256632552,-500.0,0.00019173,2]
[362407749,1748256632561,-500.0,0.00019173,2]
[362407751,1748256632570,-516.74886627,0.00019173,2]
[362407753,1748256632579,-502.92192488,0.00019173,2]
[362407755,1748256632588,-506.74337906,0.00019173,2]
[362407757,1748256632597,-507.4290475,0.00019173,2]
[362407759,1748256632607,-249.41187117,0.00019173,2]
[362407761,1748256632616,-505.55509178,0.00019173,2]
[362407763,1748256632625,-500.0,0.00019173,2]
[362407765,1748256632634,-327.40549956,0.00019173,2]
[362407768,1748256632654,-172.59450044,0.00019173,2]
[362407770,1748256632663,-500.0,0.00019173,2]
[362407772,1748256632672,-248.75349956,0.00019177,2]
[362408240,1748256637923,-300.0,0.00019176,2]
[362408242,1748256637933,-336.79877026,0.00019177,2]
[362408245,1748256637950,-4218.21671688,0.00019177,2]
[362408249,1748256637980,-5864.96682599,0.00019177,2]
[362408251,1748256637990,-500.0,0.00019177,2]
[362408253,1748256637999,-500.0,0.00019177,2]
[362408255,1748256638009,-500.0,0.00019177,2]
[362408257,1748256638019,-500.0,0.00019177,2]
[362408259,1748256638030,-206.84907402,0.00019177,2]
[362408261,1748256638041,-500.0,0.00019177,2]
[362408263,1748256638051,-500.0,0.00019177,2]
[362408265,1748256638061,-500.0,0.00019177,2]
[362408267,1748256638071,-151.433266,0.00019178,2]
[362408269,1748256638080,-151.433266,0.00019178,2]
[362408271,1748256638090,-214.763886,0.00019178,2]
[362408273,1748256638099,-171.811109,0.00019178,2]
[362408275,1748256638108,-579.825338,0.00019178,2]
[362408277,1748256638118,-214.763886,0.00019178,2]
[362408279,1748256638127,-579.825338,0.00019178,2]
[362408281,1748256638137,-579.825338,0.00019178,2]
[362408282,1748256638146,-561.481271,0.00019178,2]
[362408285,1748256638162,-561.481271,0.00019178,2]
[362408287,1748256638172,-561.481271,0.00019178,2]
[362408289,1748256638181,-154.601241,0.00019178,2]
[362408291,1748256638191,-537.202196,0.00019178,2]
[362408293,1748256638200,-537.202196,0.00019178,2]
[362408295,1748256638210,-537.202196,0.00019178,2]
[362408297,1748256638219,-151.094754,0.00019178,2]
[362408299,1748256638229,-151.094754,0.00019178,2]
[362408301,1748256638238,-581.916543,0.00019178,2]
[362408303,1748256638250,-581.916543,0.00019178,2]
[362408305,1748256638259,-581.916543,0.00019178,2]
[362408307,1748256638269,-154.601241,0.00019178,2]
[362408309,1748256638280,-674.231778,0.00019178,2]
[362408311,1748256638290,-674.231778,0.00019178,2]
[362408313,1748256638301,-674.231778,0.00019178,2]
[362408315,1748256638315,-352.442283,0.00019178,2]
[362408317,1748256638325,-352.442283,0.00019178,2]
[362408319,1748256638335,-646.320927,0.00019178,2]
[362408321,1748256638345,-646.320927,0.00019178,2]
[362408323,1748256638355,-646.320927,0.00019178,2]
[362408325,1748256638364,-352.442283,0.00019178,2]
[362408327,1748256638374,-632.336579,0.00019178,2]
[362408329,1748256638385,-632.336579,0.00019178,2]
[362408331,1748256638394,-632.336579,0.00019178,2]
[362408333,1748256638404,-154.601241,0.00019178,2]
[362408335,1748256638414,-623.055223,0.00019178,2]
[362408337,1748256638423,-623.055223,0.00019178,2]
[362408339,1748256638432,-623.055223,0.00019178,2]
[362408341,1748256638442,-151.930503,0.00019178,2]
[362408342,1748256638450,-151.255127,0.00019178,2]
[362408344,1748256638460,-151.255127,0.00019178,2]
[362408346,1748256638470,-612.563487,0.00019178,2]
[362408348,1748256638479,-612.563487,0.00019178,2]
[362408350,1748256638489,-612.563487,0.00019178,2]
[362408352,1748256638498,-154.601241,0.00019178,2]
[362408354,1748256638508,-183.09,0.00019178,2]
[362408356,1748256638519,-12247.5545,0.00019198,2]
[362408358,1748256638528,-609.8851,0.00019198,2]
[362408360,1748256638538,-150.0,0.00019212,2]
[362408362,1748256638547,-798.69,0.00019229,2]
[362408364,1748256638557,-663.91142528,0.00019333,2]
[362408365,1748256638566,-579.825338,0.00019369,2]
[362408366,1748256638575,-561.481271,0.00019369,2]
[362408367,1748256638584,-537.202196,0.00019369,2]
[362408368,1748256638596,-151.094754,0.00019369,2]
[362408369,1748256638608,-581.916543,0.00019369,2]
[362408370,1748256638621,-674.231778,0.00019369,2]
[362408371,1748256638630,-646.320927,0.00019369,2]
[362408372,1748256638639,-352.442283,0.00019369,2]
[362408373,1748256638649,-632.336579,0.00019369,2]
[362408374,1748256638658,-623.055223,0.00019369,2]
[362408375,1748256638671,-151.255127,0.00019369,2]
[362408377,1748256638681,-612.563487,0.00019369,2]
[362408379,1748256638690,-165.57,0.00019423,2]
[362408381,1748256638699,-2918.0956,0.00019438,2]
[362408383,1748256638709,-271.0999,0.00019438,2]
[362408385,1748256638718,-1347.1594,0.00019438,2]
[362408387,1748256638728,-227.1363,0.00019438,2]
[362408389,1748256638737,-1130.6547,0.00019438,2]
[362408391,1748256638746,-622.06063393,0.00019473,2]
[362408393,1748256638757,-7591.06985445,0.00019473,2]
[362408395,1748256638766,-168565.74163397,0.00019538,2]
[362408397,1748256638776,-194.14010112,0.00019573,2]
[362408399,1748256638785,-626.97708266,0.00019573,2]
[362408400,1748256638795,-182.45307316,0.00019573,2]
[362408402,1748256638805,-501.12588274,0.00019573,2]
[362408404,1748256638814,-500.0,0.00019573,2]
[362408406,1748256638823,-1000.0,0.00019621,2]
[362408408,1748256638833,-500.0,0.00019621,2]
[362408410,1748256638842,-1000.0,0.00019621,2]
[362408412,1748256638851,-500.0,0.00019721,2]
[362408414,1748256638860,-567.59511976,0.00019721,2]
[362408416,1748256638869,-1011.45224705,0.00019721,2]
[362408418,1748256638878,-1000.0,0.00019721,2]
[362408420,1748256638889,-1000.0,0.00019721,2]
[362408422,1748256638898,-1000.0,0.00019721,2]
[362408425,1748256638908,-171.811109,0.00019726,2]
[362408426,1748256638918,-579.825338,0.00019726,2]
[362408428,1748256638927,-579.825338,0.00019726,2]
[362408430,1748256638936,-561.481271,0.00019726,2]
[362408432,1748256638945,-561.481271,0.00019726,2]
[362408434,1748256638957,-537.202196,0.00019726,2]
[362408436,1748256638967,-537.202196,0.00019726,2]
[362408438,1748256638976,-151.094754,0.00019726,2]
[362408440,1748256638986,-581.916543,0.00019726,2]
[362408442,1748256638995,-581.916543,0.00019726,2]
[362408444,1748256639004,-674.231778,0.00019726,2]
[362408446,1748256639014,-674.231778,0.00019726,2]
[362408448,1748256639023,-646.320927,0.00019726,2]
[362408450,1748256639032,-352.442283,0.00019726,2]
[362408452,1748256639042,-646.320927,0.00019726,2]
[362408454,1748256639052,-352.442283,0.00019726,2]
[362408456,1748256639061,-632.336579,0.00019726,2]
[362408458,1748256639071,-632.336579,0.00019726,2]
[362408460,1748256639080,-623.055223,0.00019726,2]
[362408462,1748256639090,-623.055223,0.00019726,2]
[362408464,1748256639099,-151.255127,0.00019726,2]
[362408466,1748256639109,-612.563487,0.00019726,2]
[362408468,1748256639118,-612.563487,0.00019726,2]
[362408470,1748256639127,-158.96385426,0.00019794,2]
[362408472,1748256639137,-2500.0,0.00019795,2]
[362408474,1748256639146,-1425.02011929,0.00019799,2]
[362408476,1748256639156,-500.0,0.00019873,2]
[362408478,1748256639166,-159.45512237,0.00019873,2]
[362408480,1748256639175,-157.9124329,0.00019873,2]
[362408482,1748256639184,-500.0,0.00019873,2]
[362408484,1748256639193,-159.46571924,0.00019873,2]
[362408486,1748256639203,-500.0,0.00019873,2]
[362408488,1748256639212,-500.0,0.00019873,2]
[362408490,1748256639222,-500.0,0.00019873,2]
[362408492,1748256639230,-147730.4502,0.00019895,2]
[362408494,1748256639240,-151.433266,0.00019899,2]
[362408496,1748256639249,-579.825338,0.00019899,2]
[362408498,1748256639258,-579.825338,0.00019899,2]
[362408500,1748256639267,-579.825338,0.00019899,2]
[362408502,1748256639277,-561.481271,0.00019899,2]
[362408504,1748256639286,-561.481271,0.00019899,2]
[362408506,1748256639296,-561.481271,0.00019899,2]
[362408508,1748256639307,-537.202196,0.00019899,2]
[362408510,1748256639317,-537.202196,0.00019899,2]
[362408512,1748256639326,-537.202196,0.00019899,2]
[362408514,1748256639335,-151.094754,0.00019899,2]
[362408516,1748256639346,-151.094754,0.00019899,2]
[362408518,1748256639356,-581.916543,0.00019899,2]
[362408520,1748256639364,-581.916543,0.00019899,2]
[362408522,1748256639374,-581.916543,0.00019899,2]
[362408524,1748256639385,-674.231778,0.00019899,2]
[362408526,1748256639395,-674.231778,0.00019899,2]
[362408528,1748256639405,-674.231778,0.00019899,2]
[362408530,1748256639414,-646.320927,0.00019899,2]
[362408532,1748256639424,-352.442283,0.00019899,2]
[362408534,1748256639433,-646.320927,0.00019899,2]
[362408536,1748256639442,-352.442283,0.00019899,2]
[362408538,1748256639452,-646.320927,0.00019899,2]
[362408539,1748256639461,-352.442283,0.00019899,2]
[362408541,1748256639471,-632.336579,0.00019899,2]
[362408543,1748256639480,-632.336579,0.00019899,2]
[362408545,1748256639489,-632.336579,0.00019899,2]
[362408547,1748256639498,-623.055223,0.00019899,2]
[362408549,1748256639507,-623.055223,0.00019899,2]
[362408551,1748256639517,-623.055223,0.00019899,2]
[362408553,1748256639526,-151.255127,0.00019899,2]
[362408555,1748256639535,-151.255127,0.00019899,2]
[362408557,1748256639546,-612.563487,0.00019899,2]
[362408559,1748256639555,-612.563487,0.00019899,2]
[362408580,1748256639746,-612.563487,0.00019899,2]
[362408582,1748256639756,-533.08429425,0.000199,2]
[362408584,1748256639765,-151.433266,0.00019921,2]
[362408586,1748256639775,-579.825338,0.00019921,2]
[362408588,1748256639784,-561.481271,0.00019921,2]
[362408590,1748256639793,-537.202196,0.00019921,2]
[362408592,1748256639803,-151.094754,0.00019921,2]
[362408594,1748256639812,-581.916543,0.00019921,2]
[362408596,1748256639822,-674.231778,0.00019921,2]
[362408598,1748256639831,-646.320927,0.00019921,2]
[362408600,1748256639840,-352.442283,0.00019921,2]
[362408602,1748256639850,-632.336579,0.00019921,2]
[362408604,1748256639859,-154.601241,0.00019921,2]
[362408606,1748256639868,-623.055223,0.00019921,2]
[362408608,1748256639878,-151.255127,0.00019921,2]
[362408610,1748256639887,-612.563487,0.00019921,2]
[362408612,1748256639896,-171.811109,0.00019989,2]
[362408614,1748256639906,-151.094754,0.00019989,2]
[362408616,1748256639914,-352.442283,0.00019989,2]
[362408618,1748256639923,-151.094754,0.00019992,2]
[362408620,1748256639933,-352.442283,0.00019992,2]
[362408622,1748256639942,-352.442283,0.00019992,2]
[362408624,1748256639959,-151.255127,0.00019992,2]
[362408626,1748256639968,-151.255127,0.00019992,2]
[362408628,1748256639978,-151.433266,0.00019993,2]
[362408630,1748256639987,-214.763886,0.00019993,2]
[362408632,1748256639996,-214.763886,0.00019993,2]
[362408634,1748256640005,-151.094754,0.00019993,2]
[362408636,1748256640015,-352.442283,0.00019993,2]
[362408638,1748256640024,-151.930503,0.00019993,2]
[362408640,1748256640032,-154.601241,0.00019993,2]
[362408642,1748256640041,-151.094754,0.00019994,2]
[362408644,1748256640050,-352.442283,0.00019994,2]
[362408646,1748256640059,-352.442283,0.00019994,2]
[362408648,1748256640068,-151.255127,0.00019994,2]
[362408650,1748256640077,-151.255127,0.00019994,2]
[362408652,1748256640087,-171.811109,0.00019997,2]
[362408654,1748256640096,-151.094754,0.00019997,2]
[362408656,1748256640105,-352.442283,0.00019997,2]
[362408658,1748256640115,-151.433266,0.00019998,2]
[362408660,1748256640124,-151.094754,0.00019998,2]
[362408662,1748256640133,-352.442283,0.00019998,2]
[362408664,1748256640143,-154.601241,0.00019998,2]
[362408666,1748256640152,-151.255127,0.00019998,2]
[362408668,1748256640161,-151.433266,0.00019999,2]
[362408669,1748256640170,-171.811109,0.00019999,2]
[362408671,1748256640179,-151.094754,0.00019999,2]
[362408673,1748256640188,-151.094754,0.00019999,2]
[362408675,1748256640197,-151.094754,0.00019999,2]
[362408677,1748256640207,-151.094754,0.00019999,2]
[362408679,1748256640216,-151.094754,0.00019999,2]
[362408681,1748256640225,-352.442283,0.00019999,2]
[362408684,1748256640239,-352.442283,0.00019999,2]
[362408686,1748256640248,-352.442283,0.00019999,2]
[362408688,1748256640257,-352.442283,0.00019999,2]
[362408690,1748256640266,-352.442283,0.00019999,2]
[362408692,1748256640276,-352.442283,0.00019999,2]
[362408694,1748256640285,-352.442283,0.00019999,2]
[362408696,1748256640295,-352.442283,0.00019999,2]
[362408698,1748256640308,-151.255127,0.00019999,2]
[362408700,1748256640317,-151.255127,0.00019999,2]
[362408702,1748256640328,-151.255127,0.00019999,2]
[362408704,1748256640337,-151.255127,0.00019999,2]
[362408706,1748256640347,-151.255127,0.00019999,2]
[362408708,1748256640357,-12500.0,0.0002,2]
[362408710,1748256640368,-3223.54438443,0.0002,2]
[362408712,1748256640380,-250.0,0.00020015,2]
[362408714,1748256640389,-200.0,0.00020015,2]
[362408716,1748256640399,-266.5,0.000201,2]
[362408718,1748256640409,-502.47839955,0.00020121,2]
[362408720,1748256640418,-1500.0,0.00020168,2]
[362408722,1748256640427,-1500.0,0.00020168,2]
[362408724,1748256640437,-175.97,0.00020187,2]
[362408726,1748256640446,-1500.0,0.00020268,2]
[362408728,1748256640456,-1500.0,0.00020268,2]
[362408730,1748256640466,-1500.0,0.00020268,2]
[362408732,1748256640475,-200.42501455,0.00020283,2]
[362408734,1748256640484,-150.0,0.00020355,7]
[362408736,1748256640494,-200.0,0.00020367,2]
[362408738,1748256640504,-1680.0,0.0002039,2]
[362408740,1748256640513,-1000.0,0.00020421,2]
[362408742,1748256640523,-201.35838057,0.00020421,2]
[362408744,1748256640532,-501.92609402,0.00020421,2]
[362408746,1748256640542,-989.49831959,0.00020421,2]
[362408748,1748256640551,-1000.0,0.00020421,2]
[362408750,1748256640560,-961.61046766,0.00020716,2]
[362408752,1748256640570,-454.86845752,0.00020716,2]
[362408754,1748256640579,-1255.80287289,0.00020745,2]
[362408755,1748256640588,-1622.43,0.00020785,2]
[362408756,1748256640598,-240.0,0.00020797,2]
[362408757,1748256640607,-2751.0,0.00020813,2]
[362408758,1748256640616,-507.0440871,0.00020816,2]
[362408759,1748256640626,-505.62472239,0.00020816,2]
[362408760,1748256640635,-2000.0,0.00020816,2]
[362408761,1748256640644,-420.0,0.00020898,2]
[362408762,1748256640654,-324.77,0.00020963,2]
[362408763,1748256640663,-1501.2201206,0.00020968,2]
[362408764,1748256640672,-515.36803309,0.00020968,2]
[362408765,1748256640681,-1000.0,0.00020986,2]
[362408766,1748256640691,-200.0,0.00021,2]
[362408768,1748256640700,-533.08429402,0.00021038,4]
[362408770,1748256640709,-1000.0,0.00021295,2]
[362408772,1748256640719,-2500.0,0.00021364,2]
[362408774,1748256640728,-798.69,0.00021493,2]
[362408776,1748256640738,-1000.0,0.00021773,2]
[362408778,1748256640747,-3000.0,0.00021912,2]
[362408780,1748256640756,-500.0,0.00021918,2]
[362408782,1748256640766,-500.0,0.00021918,2]
[362408784,1748256640775,-500.0,0.00021918,2]
[362408786,1748256640784,-500.0,0.00021918,2]
[362408788,1748256640794,-500.0,0.00021918,2]
[362408790,1748256640803,-500.0,0.00021918,2]
[362408792,1748256640812,-500.0,0.00021918,2]
[362408794,1748256640821,-500.0,0.00021918,2]
[362408796,1748256640831,-500.0,0.00021918,2]
[362408798,1748256640840,-500.0,0.00021918,2]
[362408800,1748256640850,-500.0,0.00021918,2]
[362408802,1748256640860,-500.0,0.00021918,2]
[362408804,1748256640869,-500.0,0.00021918,2]
[362408806,1748256640879,-500.0,0.00021918,2]
[362408808,1748256640889,-500.0,0.00021918,2]
[362408809,1748256640899,-500.0,0.00021918,2]
[362408811,1748256640909,-500.0,0.00021918,2]
[362408814,1748256640919,-500.0,0.00021918,2]
[362408816,1748256640929,-500.0,0.00021918,2]
[362408818,1748256640939,-500.0,0.00021918,2]
[362408820,1748256640948,-500.0,0.00021918,2]
[362408822,1748256640959,-500.0,0.00021918,2]
[362408824,1748256640968,-500.0,0.00021918,2]
[362408826,1748256640978,-535.31745509,0.00021918,2]
[362408828,1748256640987,-168.94,0.00022011,2]
[362408830,1748256640998,-5800.0,0.000221,2]
[362408832,1748256641008,-604.7,0.000221,2]
[362408834,1748256641017,-533.08429402,0.00022176,6]
[362408836,1748256641027,-2351.0,0.00022343,2]
[362408838,1748256641037,-3500.0,0.0002246,2]
[362408840,1748256641046,-1000.0,0.0002256,2]
[362408842,1748256641055,-165.57,0.00022628,2]
[362408844,1748256641065,-400.0,0.00022775,2]
[362408846,1748256641075,-7591.06985437,0.00022808,2]
[362408848,1748256641084,-400.0,0.0002297,2]
[362408850,1748256641094,-544.60019437,0.0002297,2]
[362408852,1748256641104,-3280.80250551,0.00023008,2]
[362408854,1748256641114,-1425.02011923,0.00023098,2]
[362408856,1748256641123,-324.77,0.00023292,2]
[362408858,1748256641133,-533.08429402,0.00023314,9]
[362408860,1748256641143,-1000.0,0.00023347,2]
[362408862,1748256641152,-1000.0,0.00023661,2]
[362408864,1748256641162,-798.69,0.00023757,2]
[362408866,1748256641172,-400.0,0.0002397,2]
[362408868,1748256641181,-1000.0,0.00024134,2]
[362408870,1748256641191,-250.0,0.00024322,2]
[362408872,1748256641200,-533.08429402,0.00024452,11]
[362408874,1748256641209,-3292.0,0.00024482,2]
[362408876,1748256641219,-1000.0,0.00024658,2]
[362408878,1748256641228,-533.08429402,0.0002559,13]